[Event "2nd Namma Bengaluru Open-A 2025"]
[Site "Bengaluru"]
[Date "2025.04.17"]
[Round "9.24"]
[White "Prakhar Tripathi"]
[Black "Vignesh B"]
[Result "1/2-1/2"]
[Annotator "RC"]
[ECO "C02"]
[WhiteElo "1932"]
[BlackElo "2191"]
[PlyCount "75"]
[EventDate "2025.04.10"]
[EventType "swiss"]
[EventCountry "IND"]
[SourceTitle "playchess.com"]
[Source "ChessBase"]
[SourceQuality "1"]
[TimeControl "5400+30"]

1. e4 {[%emt 0:00:04]} e6 {[%emt 0:02:02]} 2. d4 {[%emt 0:00:14]} d5 {[%emt 0:00:29]} 3. e5 {[%emt 0:00:02]} c5 {[%emt 0:00:09]} 4. c3 {[%emt 0:00:02]} Nc6 {[%emt 0:00:07]} 5. Nf3 {[%emt 0:00:08]} Qb6 {[%emt 0:00:23]} 6. a3 {[%emt 0:00:02]} Nh6 {[%emt 0:08:01]} 7. b4 {[%emt 0:01:50]} cxd4 {[%emt 0:00:04]} 8. cxd4 {[%emt 0:00:09]} Nf5 {[%emt 0:00:06]} 9. Bb2 {[%emt 0:07:19]} Be7 {[%emt 0:00:17]} 10. Be2 {[%emt 0:02:27]} Bd7 {[%emt 0:03:36]} 11. O-O {[%emt 0:02:57]} f6 {[%emt 0:05:18]} 12. Bd3 {[%emt 0:05:20]} g6 {[%emt 0:12:21]} 13. exf6 {[%emt 0:05:26]} Bxf6 {[%emt 0:01:03]} 14. Bxf5 {[%emt 0:00:28]} gxf5 {[%emt 0:05:36]} 15. Ne5 {[%emt 0:01:34]} h5 {[%emt 0:07:55]} 16. Nc3 {[%emt 0:10:17]} Qxd4 {[%emt 0:25:13]} 17. Nxd7 {[%emt 0:00:56]} Kxd7 {[%emt 0:00:08]} 18. Nxd5 {[%emt 0:00:50]} Qxb2 {[%emt 0:10:45]} 19. Nxf6+ {[%emt 0:07:43]} Ke7 {[%emt 0:00:05]} 20. Nxh5 {[%emt 0:03:17]} Rad8 {[%emt 0:05:25]} 21. Qf3 {[%emt 0:01:07]} Ne5 {[%emt 0:04:48]} 22. Qg3 {[%emt 0:49:18]} Rdg8 {[%emt 0:06:57]} 23. Qh4+ {[%emt 0:00:00]} Kd7 {[%emt 0:00:31]} 24. Nf6+ {[%emt 0:00:00]} Kc8 {[%emt 0:00:08]} 25. Qf4 {[%emt 0:00:00]} Nf3+ {[%emt 0:00:50]} 26. Qxf3 {[%emt 0:00:00]} Qxf6 {[%emt 0:00:05]} 27. Rac1+ {[%emt 0:00:00]} Kb8 {[%emt 0:00:01]} 28. Rfd1 {[%emt 0:00:00]} Rd8 {[%emt 0:01:07]} 29. Rxd8+ {[%emt 0:00:00]} Rxd8 {[%emt 0:00:00]} 30. Qf4+ {[%emt 0:00:00]} e5 {[%emt 0:00:26]} 31. Qc4 {[%emt 0:00:00]} a6 {[%emt 0:00:57]} 32. h3 {[%emt 0:00:00]} e4 {[%emt 0:00:28]} 33. Qc7+ {[%emt 0:00:00]} Ka8 {[%emt 0:00:04]} 34. b5 {[%emt 0:00:00]} axb5 {[%emt 0:00:16]} 35. Qa5+ {[%emt 0:00:00]} Kb8 {[%emt 0:00:01]} 36. Qc7+ {[%emt 0:00:19]} Ka8 {[%emt 0:00:03]} 37. Qa5+ {[%emt 0:01:45]} Kb8 {[%emt 0:00:04]} 38. Qc7+ {[%emt 0:00:45]} 1/2-1/2

[Event "2nd Namma Bengaluru Open-A 2025"]
[Site "Bengaluru"]
[Date "2025.04.17"]
[Round "9.25"]
[White "Deepan Chakkravarthy J."]
[Black "Roy Chowdhury, Saptarshi"]
[Result "1-0"]
[Annotator "RC"]
[ECO "B31"]
[WhiteElo "2394"]
[BlackElo "2224"]
[PlyCount "79"]
[EventDate "2025.04.10"]
[EventType "swiss"]
[EventCountry "IND"]
[SourceTitle "playchess.com"]
[Source "ChessBase"]
[SourceQuality "1"]
[TimeControl "5400+30"]

1. e4 {[%emt 0:00:05]} c5 {[%emt 0:00:05]} 2. Nf3 {[%emt 0:00:04]} Nc6 {[%emt 0:00:04]} 3. Bb5 {[%emt 0:00:03]} g6 {[%emt 0:00:06]} 4. O-O {[%emt 0:00:37]} Bg7 {[%emt 0:00:02]} 5. Bxc6 {[%emt 0:00:12]} bxc6 {[%emt 0:00:08]} 6. c3 {[%emt 0:00:09]} Nh6 {[%emt 0:00:52]} 7. d4 {[%emt 0:00:09]} cxd4 {[%emt 0:00:06]} 8. cxd4 {[%emt 0:00:02]} f6 {[%emt 0:00:13]} 9. Nc3 {[%emt 0:01:08]} O-O {[%emt 0:02:51]} 10. h3 {[%emt 0:00:30]} Nf7 {[%emt 0:00:07]} 11. Re1 {[%emt 0:00:16]} d6 {[%emt 0:00:07]} 12. b3 {[%emt 0:00:13]} Bd7 {[%emt 0:01:22]} 13. Bb2 {[%emt 0:00:06]} e5 {[%emt 0:05:55]} 14. Rc1 {[%emt 0:06:02]} Rb8 {[%emt 0:02:51]} 15. Qc2 {[%emt 0:02:20]} Qc8 {[%emt 0:10:30]} 16. Rcd1 {[%emt 0:05:40]} Bh6 {[%emt 0:11:08]} 17. Bc1 {[%emt 0:00:59]} Bxc1 {[%emt 0:08:33]} 18. Qxc1 {[%emt 0:01:13]} Qd8 {[%emt 0:00:35]} 19. Re2 {[%emt 0:04:25]} Qe7 {[%emt 0:01:07]} 20. Qe3 {[%emt 0:12:29]} Rb7 {[%emt 0:02:41]} 21. Red2 {[%emt 0:03:15]} Bc8 {[%emt 0:00:16]} 22. Nh2 {[%emt 0:04:29]} Qe8 {[%emt 0:20:15]} 23. f4 {[%emt 0:06:05]} Re7 {[%emt 0:03:58]} 24. Nf3 {[%emt 0:00:30]} exf4 {[%emt 0:02:27]} 25. Qxf4 {[%emt 0:00:10]} f5 {[%emt 0:02:34]} 26. Re2 {[%emt 0:16:37]} g5 {[%emt 0:13:13]} 27. Nxg5 {[%emt 0:02:05]} Nxg5 {[%emt 0:00:07]} 28. Qxg5+ {[%emt 0:00:03]} Rg7 {[%emt 0:00:03]} 29. Qh4 {[%emt 0:11:22]} f4 {[%emt 0:00:41]} 30. Rf2 {[%emt 0:01:06]} Qg6 {[%emt 0:00:18]} 31. Kh1 {[%emt 0:03:24]} h6 {[%emt 0:05:11]} 32. Rg1 {[%emt 0:03:23]} Kh7 {[%emt 0:02:46]} 33. Rf3 {[%emt 0:02:29]} d5 {[%emt 0:01:02]} 34. exd5 {[%emt 0:00:33]} cxd5 {[%emt 0:00:39]} 35. Ne2 {[%emt 0:00:55]} Qe4 {[%emt 0:01:37]} 36. Qf2 {[%emt 0:01:04]} Rgf7 {[%emt 0:02:04]} 37. Nc3 {[%emt 0:02:23]} Qg6 {[%emt 0:01:10]} 38. Nxd5 {[%emt 0:01:26]} Bb7 {[%emt 0:01:15]} 39. Nxf4 {[%emt 0:00:02]} Qg5 {[%emt 0:00:20]} 40. Ne6 {[%emt 0:00:09]} 1-0

[Event "2nd Namma Bengaluru Open-A 2025"]
[Site "Bengaluru"]
[Date "2025.04.17"]
[Round "9.26"]
[White "Panda Sambit"]
[Black "Varun, Vij"]
[Result "0-1"]
[Annotator "RC"]
[ECO "D77"]
[WhiteElo "2391"]
[BlackElo "1978"]
[PlyCount "92"]
[EventDate "2025.04.10"]
[EventType "swiss"]
[EventCountry "IND"]
[SourceTitle "playchess.com"]
[Source "ChessBase"]
[SourceQuality "1"]
[TimeControl "5400+30"]

1. d4 {[%emt 0:02:01]} Nf6 {[%emt 0:00:12]} 2. Nf3 {[%emt 0:04:27]} g6 {[%emt 0:00:07]} 3. g3 {[%emt 0:04:00]} Bg7 {[%emt 0:01:12]} 4. Bg2 {[%emt 0:00:04]} O-O {[%emt 0:00:07]} 5. O-O {[%emt 0:00:04]} d5 {[%emt 0:00:47]} 6. c4 {[%emt 0:00:11]} dxc4 {[%emt 0:00:10]} 7. a4 {[%emt 0:00:53]} c5 {[%emt 0:05:14]} 8. Na3 {[%emt 0:07:29]} Nc6 {[%emt 0:07:04]} 9. Ne5 {[%emt 0:15:58]} cxd4 {[%emt 0:10:36]} 10. Nxc6 {[%emt 0:02:52]} bxc6 {[%emt 0:01:26]} 11. Nxc4 {[%emt 0:00:01]} Nd5 {[%emt 0:01:49]} 12. Bd2 {[%emt 0:00:00]} Ba6 {[%emt 0:14:50]} 13. Rc1 {[%emt 0:00:07]} c5 {[%emt 0:00:46]} 14. Re1 {[%emt 0:07:26]} Rb8 {[%emt 0:05:35]} 15. e4 {[%emt 0:05:00]} Nb4 {[%emt 0:09:31]} 16. Bf4 {[%emt 0:02:26]} Rc8 {[%emt 0:02:32]} 17. Bh3 {[%emt 0:09:52]} Rc6 {[%emt 0:01:17]} 18. Bf1 {[%emt 0:05:27]} d3 {[%emt 0:07:53]} 19. b3 {[%emt 0:05:43]} Na2 {[%emt 0:03:28]} 20. Qd2 {[%emt 0:08:42]} Nxc1 {[%emt 0:00:48]} 21. Rxc1 {[%emt 0:00:01]} Qd7 {[%emt 0:08:38]} 22. e5 {[%emt 0:00:14]} Bxc4 {[%emt 0:01:27]} 23. Rxc4 {[%emt 0:02:11]} g5 {[%emt 0:00:52]} 24. Bxg5 {[%emt 0:08:42]} Bxe5 {[%emt 0:00:06]} 25. Bg2 {[%emt 0:00:57]} Rd6 {[%emt 0:04:05]} 26. Rxc5 {[%emt 0:02:36]} Bd4 {[%emt 0:00:07]} 27. Rc4 {[%emt 0:05:30]} f6 {[%emt 0:01:57]} 28. Bf4 {[%emt 0:00:49]} e5 {[%emt 0:00:42]} 29. Bh6 {[%emt 0:00:43]} Re8 {[%emt 0:03:42]} 30. Be4 {[%emt 0:00:20]} Bb6 {[%emt 0:04:49]} 31. a5 {[%emt 0:00:21]} Bd8 {[%emt 0:00:29]} 32. Be3 {[%emt 0:00:47]} f5 {[%emt 0:00:30]} 33. Bg2 {[%emt 0:00:32]} e4 {[%emt 0:00:13]} 34. h4 {[%emt 0:00:29]} a6 {[%emt 0:01:41]} 35. Bc5 {[%emt 0:00:23]} Rd5 {[%emt 0:00:35]} 36. g4 {[%emt 0:00:37]} Bxh4 {[%emt 0:00:35]} 37. Be3 {[%emt 0:00:34]} f4 {[%emt 0:00:51]} 38. Bxf4 {[%emt 0:00:01]} Qxg4 {[%emt 0:00:01]} 39. Be3 {[%emt 0:00:39]} Qe2 {[%emt 0:01:29]} 40. Bxe4 {[%emt 0:00:47]} Bxf2+ {[%emt 0:00:13]} 41. Bxf2 {[%emt 0:00:26]} Qxd2 {[%emt 0:00:37]} 42. Bxd5+ {[%emt 0:00:05]} Kg7 {[%emt 0:00:23]} 43. Bd4+ {[%emt 0:00:34]} Kg6 {[%emt 0:02:34]} 44. Rc6+ {[%emt 0:00:06]} Kg5 {[%emt 0:00:00]} 45. Bf6+ {[%emt 0:00:14]} Kf5 {[%emt 0:01:00]} 46. Bg2 {[%emt 0:00:13]} Rg8 {[%emt 0:00:00]} 0-1

[Event "2nd Namma Bengaluru Open-A 2025"]
[Site "Bengaluru"]
[Date "2025.04.17"]
[Round "9.27"]
[White "Sathvik Adiga"]
[Black "Vignesh B"]
[Result "0-1"]
[Annotator "RC"]
[ECO "B06"]
[WhiteElo "2390"]
[BlackElo "2191"]
[PlyCount "110"]
[EventDate "2025.04.10"]
[EventType "swiss"]
[EventCountry "IND"]
[SourceTitle "playchess.com"]
[Source "ChessBase"]
[SourceQuality "1"]
[TimeControl "5400+30"]

1. e4 {[%emt 0:00:06]} g6 {[%emt 0:00:14]} 2. d4 {[%emt 0:00:07]} Bg7 {[%emt 0:00:02]} 3. Nc3 {[%emt 0:00:08]} d6 {[%emt 0:00:05]} 4. Be3 {[%emt 0:00:11]} a6 {[%emt 0:01:11]} 5. g4 {[%emt 0:00:05]} h5 {[%emt 0:01:33]} 6. g5 {[%emt 0:01:34]} b5 {[%emt 0:00:06]} 7. Bg2 {[%emt 0:01:08]} e6 {[%emt 0:03:25]} 8. h4 {[%emt 0:06:36]} Ne7 {[%emt 0:00:19]} 9. a4 {[%emt 0:03:52]} b4 {[%emt 0:00:05]} 10. Nce2 {[%emt 0:00:06]} d5 {[%emt 0:01:52]} 11. f3 {[%emt 0:09:44]} O-O {[%emt 0:12:14]} 12. Qd2 {[%emt 0:08:32]} a5 {[%emt 0:00:14]} 13. Ng3 {[%emt 0:02:57]} c5 {[%emt 0:00:34]} 14. N1e2 {[%emt 0:04:09]} Nbc6 {[%emt 0:12:23]} 15. c3 {[%emt 0:02:01]} Ba6 {[%emt 0:23:38]} 16. O-O {[%emt 0:16:01]} cxd4 {[%emt 0:14:28]} 17. cxd4 {[%emt 0:00:17]} e5 {[%emt 0:00:05]} 18. Rfd1 {[%emt 0:11:00]} Bxe2 {[%emt 0:18:52]} 19. Nxe2 {[%emt 0:05:47]} dxe4 {[%emt 0:00:18]} 20. d5 {[%emt 0:04:47]} Nd4 {[%emt 0:04:03]} 21. Bxd4 {[%emt 0:04:17]} exf3 {[%emt 0:00:45]} 22. Bxf3 {[%emt 0:00:42]} exd4 {[%emt 0:00:02]} 23. d6 {[%emt 0:00:20]} Nf5 {[%emt 0:00:06]} 24. Be4 {[%emt 0:09:00]} Qxd6 {[%emt 0:02:30]} 25. Bxa8 {[%emt 0:01:02]} Rxa8 {[%emt 0:00:02]} 26. Qf4 {[%emt 0:00:17]} Qd5 {[%emt 0:01:02]} 27. Ng3 {[%emt 0:01:09]} Nxg3 {[%emt 0:02:06]} 28. Qxg3 {[%emt 0:00:02]} Re8 {[%emt 0:00:36]} 29. Re1 {[%emt 0:04:59]} Re3 {[%emt 0:00:23]} 30. Qg2 {[%emt 0:01:50]} Qe5 {[%emt 0:00:57]} 31. Qf2 {[%emt 0:00:24]} Qe4 {[%emt 0:00:17]} 32. Rxe3 {[%emt 0:01:00]} dxe3 {[%emt 0:00:02]} 33. Qg2 {[%emt 0:01:00]} Qxh4 {[%emt 0:00:06]} 34. Rd1 {[%emt 0:01:12]} Bd4 {[%emt 0:00:35]} 35. Kf1 {[%emt 0:00:10]} Qf4+ {[%emt 0:00:32]} 36. Ke1 {[%emt 0:00:17]} h4 {[%emt 0:01:05]} 37. Ke2 {[%emt 0:01:12]} Bxb2 {[%emt 0:00:30]} 38. Rd8+ {[%emt 0:00:27]} Kg7 {[%emt 0:00:14]} 39. Qa8 {[%emt 0:00:08]} Qf2+ {[%emt 0:00:41]} 40. Kd3 {[%emt 0:00:01]} Kh7 {[%emt 0:00:16]} 41. Re8 {[%emt 0:00:23]} Qd2+ {[%emt 0:00:10]} 42. Kc4 {[%emt 0:00:05]} Qd4+ {[%emt 0:01:36]} 43. Kb5 {[%emt 0:00:13]} Qd3+ {[%emt 0:00:26]} 44. Kxa5 {[%emt 0:00:19]} b3 {[%emt 0:00:40]} 45. Re4 {[%emt 0:01:26]} Bc3+ {[%emt 0:00:37]} 46. Kb6 {[%emt 0:00:01]} Qxe4 {[%emt 0:00:56]} 47. Qxe4 {[%emt 0:00:39]} b2 {[%emt 0:00:02]} 48. Ka6 {[%emt 0:01:49]} e2 {[%emt 0:00:13]} 49. Qxh4+ {[%emt 0:00:50]} Kg8 {[%emt 0:00:13]} 50. Qh3 {[%emt 0:00:11]} e1=Q {[%emt 0:00:07]} 51. a5 {[%emt 0:00:29]} Qe6+ {[%emt 0:00:11]} 52. Ka7 {[%emt 0:00:09]} Qxh3 {[%emt 0:00:08]} 53. a6 {[%emt 0:00:02]} b1=Q {[%emt 0:00:06]} 54. Ka8 {[%emt 0:00:03]} Qf3+ {[%emt 0:00:08]} 55. Ka7 {[%emt 0:00:03]} Bd4# {[%emt 0:00:03]} 0-1

[Event "2nd Namma Bengaluru Open-A 2025"]
[Site "Bengaluru"]
[Date "2025.04.17"]
[Round "9.28"]
[White "Ajay Karthikeyan"]
[Black "Ahaz E U"]
[Result "0-1"]
[Annotator "RC"]
[ECO "A03"]
[WhiteElo "2387"]
[BlackElo "2190"]
[PlyCount "84"]
[EventDate "2025.04.10"]
[EventType "swiss"]
[EventCountry "IND"]
[SourceTitle "playchess.com"]
[Source "ChessBase"]
[SourceQuality "1"]
[TimeControl "5400+30"]

1. b3 {[%emt 0:09:24]} d5 {[%emt 0:00:46]} 2. Bb2 {[%emt 0:00:11]} Nf6 {[%emt 0:00:11]} 3. e3 {[%emt 0:00:11]} c6 {[%emt 0:00:53]} 4. f4 {[%emt 0:00:16]} Bf5 {[%emt 0:03:44]} 5. Nf3 {[%emt 0:00:13]} e6 {[%emt 0:00:16]} 6. Bd3 {[%emt 0:02:41]} Bxd3 {[%emt 0:06:58]} 7. cxd3 {[%emt 0:00:03]} Nbd7 {[%emt 0:00:35]} 8. O-O {[%emt 0:00:34]} Be7 {[%emt 0:02:18]} 9. Nc3 {[%emt 0:04:24]} O-O {[%emt 0:03:11]} 10. Rc1 {[%emt 0:07:02]} a5 {[%emt 0:05:54]} 11. d4 {[%emt 0:02:15]} Bb4 {[%emt 0:23:30]} 12. Ne5 {[%emt 0:04:33]} Bxc3 {[%emt 0:12:19]} 13. Bxc3 {[%emt 0:03:01]} Ne4 {[%emt 0:02:17]} 14. Bb2 {[%emt 0:04:20]} f6 {[%emt 0:07:15]} 15. Nd3 {[%emt 0:01:10]} a4 {[%emt 0:01:12]} 16. b4 {[%emt 0:02:22]} a3 {[%emt 0:04:58]} 17. Ba1 {[%emt 0:00:08]} Qe7 {[%emt 0:00:19]} 18. Nc5 {[%emt 0:01:13]} Nd6 {[%emt 0:03:05]} 19. d3 {[%emt 0:03:07]} Rfc8 {[%emt 0:03:18]} 20. Bc3 {[%emt 0:00:56]} Nf8 {[%emt 0:01:50]} 21. Bd2 {[%emt 0:00:45]} b6 {[%emt 0:03:01]} 22. Na4 {[%emt 0:10:47]} Qa7 {[%emt 0:01:15]} 23. Nc3 {[%emt 0:00:02]} Qa6 {[%emt 0:01:44]} 24. Qe2 {[%emt 0:00:23]} c5 {[%emt 0:11:41]} 25. dxc5 {[%emt 0:03:18]} bxc5 {[%emt 0:00:00]} 26. bxc5 {[%emt 0:00:32]} Rxc5 {[%emt 0:00:00]} 27. Rb1 {[%emt 0:40:09]} Rac8 {[%emt 0:00:00]} 28. Rb3 {[%emt 0:00:30]} R5c6 {[%emt 0:02:00]} 29. Nb1 {[%emt 0:00:30]} Rc2 {[%emt 0:00:30]} 30. Rxa3 {[%emt 0:00:00]} Qb5 {[%emt 0:00:30]} 31. Rb3 {[%emt 0:00:00]} Qa6 {[%emt 0:00:30]} 32. Ra3 {[%emt 0:00:00]} Qb5 {[%emt 0:00:30]} 33. Rb3 {[%emt 0:00:00]} Qa6 {[%emt 0:00:00]} 34. Nc3 {[%emt 0:02:30]} Ne4 {[%emt 0:00:00]} 35. dxe4 {[%emt 0:00:00]} Qxe2 {[%emt 0:01:30]} 36. Nxe2 {[%emt 0:00:00]} Rxd2 {[%emt 0:00:00]} 37. Nd4 {[%emt 0:00:00]} dxe4 {[%emt 0:00:00]} 38. a4 {[%emt 0:00:04]} Ra2 {[%emt 0:00:00]} 39. Rb4 {[%emt 0:01:42]} h5 {[%emt 0:00:00]} 40. h3 {[%emt 0:00:39]} Ra8 {[%emt 0:00:00]} 41. Rc1 {[%emt 0:00:26]} R2xa4 {[%emt 0:00:07]} 42. Rxa4 {[%emt 0:00:31]} Rxa4 {[%emt 0:00:02]} 0-1

[Event "2nd Namma Bengaluru Open-A 2025"]
[Site "Bengaluru"]
[Date "2025.04.17"]
[Round "9.29"]
[White "Sri Sai Baswanth P"]
[Black "Nguyen Van Huy"]
[Result "0-1"]
[Annotator "RC"]
[ECO "D11"]
[WhiteElo "2213"]
[BlackElo "2363"]
[PlyCount "88"]
[EventDate "2025.04.10"]
[EventType "swiss"]
[EventCountry "IND"]
[SourceTitle "playchess.com"]
[Source "ChessBase"]
[SourceQuality "1"]
[TimeControl "5400+30"]

1. c4 {[%emt 0:00:07]} Nf6 {[%emt 0:00:49]} 2. g3 {[%emt 0:00:36]} c6 {[%emt 0:00:57]} 3. Nf3 {[%emt 0:01:14]} d5 {[%emt 0:00:37]} 4. d4 {[%emt 0:00:56]} Bg4 {[%emt 0:01:04]} 5. Ne5 {[%emt 0:00:29]} Bf5 {[%emt 0:01:24]} 6. Qb3 {[%emt 0:01:21]} Qb6 {[%emt 0:02:13]} 7. Nc3 {[%emt 0:01:14]} e6 {[%emt 0:05:11]} 8. c5 {[%emt 0:00:45]} Qxb3 {[%emt 0:00:58]} 9. axb3 {[%emt 0:00:03]} Nbd7 {[%emt 0:01:07]} 10. Nxd7 {[%emt 0:01:19]} Nxd7 {[%emt 0:01:07]} 11. b4 {[%emt 0:01:12]} e5 {[%emt 0:02:49]} 12. e3 {[%emt 0:00:16]} Be7 {[%emt 0:02:45]} 13. Bg2 {[%emt 0:10:04]} exd4 {[%emt 0:08:20]} 14. exd4 {[%emt 0:00:02]} Bf6 {[%emt 0:00:26]} 15. Be3 {[%emt 0:01:21]} O-O {[%emt 0:00:22]} 16. O-O {[%emt 0:04:03]} a6 {[%emt 0:00:20]} 17. Rfd1 {[%emt 0:04:28]} g5 {[%emt 0:04:38]} 18. h3 {[%emt 0:02:42]} Rfe8 {[%emt 0:01:28]} 19. Ra3 {[%emt 0:07:16]} h5 {[%emt 0:04:54]} 20. Ne2 {[%emt 0:05:12]} Nf8 {[%emt 0:02:36]} 21. Nc1 {[%emt 0:02:08]} g4 {[%emt 0:06:53]} 22. hxg4 {[%emt 0:08:22]} hxg4 {[%emt 0:00:16]} 23. Bf1 {[%emt 0:06:20]} Ne6 {[%emt 0:02:07]} 24. Bd3 {[%emt 0:00:08]} Bxd3 {[%emt 0:01:21]} 25. Raxd3 {[%emt 0:00:06]} Kg7 {[%emt 0:03:50]} 26. Kg2 {[%emt 0:04:00]} Rh8 {[%emt 0:01:04]} 27. Ne2 {[%emt 0:01:11]} Rae8 {[%emt 0:01:15]} 28. Rh1 {[%emt 0:00:51]} Rxh1 {[%emt 0:01:11]} 29. Kxh1 {[%emt 0:00:01]} Ng5 {[%emt 0:00:29]} 30. Ng1 {[%emt 0:01:13]} Kg6 {[%emt 0:07:09]} 31. Kg2 {[%emt 0:01:57]} Re4 {[%emt 0:00:31]} 32. Rd1 {[%emt 0:04:06]} Bg7 {[%emt 0:08:05]} 33. Kf1 {[%emt 0:04:09]} Nf3 {[%emt 0:00:59]} 34. Ne2 {[%emt 0:04:05]} Kf5 {[%emt 0:01:32]} 35. Kg2 {[%emt 0:00:18]} Re8 {[%emt 0:00:25]} 36. Ng1 {[%emt 0:01:57]} Ke4 {[%emt 0:01:50]} 37. Nxf3 {[%emt 0:00:51]} gxf3+ {[%emt 0:00:07]} 38. Kh3 {[%emt 0:01:16]} Rh8+ {[%emt 0:05:26]} 39. Kg4 {[%emt 0:00:03]} f5+ {[%emt 0:00:20]} 40. Kg5 {[%emt 0:00:01]} Bh6+ {[%emt 0:00:06]} 41. Kg6 {[%emt 0:00:05]} Bxe3 {[%emt 0:00:16]} 42. Re1 {[%emt 0:00:15]} f4 {[%emt 0:00:34]} 43. gxf4 {[%emt 0:00:58]} Kxf4 {[%emt 0:00:09]} 44. Rxe3 {[%emt 0:01:00]} Rh2 {[%emt 0:00:16]} 0-1

[Event "2nd Namma Bengaluru Open-A 2025"]
[Site "Bengaluru"]
[Date "2025.04.17"]
[Round "9.30"]
[White "John Veny Akkarakaran"]
[Black "Anadkat Kartavya"]
[Result "1-0"]
[Annotator "RC"]
[ECO "C83"]
[WhiteElo "2350"]
[BlackElo "2187"]
[PlyCount "71"]
[EventDate "2025.04.10"]
[EventType "swiss"]
[EventCountry "IND"]
[SourceTitle "playchess.com"]
[Source "ChessBase"]
[SourceQuality "1"]
[TimeControl "5400+30"]

1. e4 {[%emt 0:02:46]} e5 {[%emt 0:00:05]} 2. Nf3 {[%emt 0:01:12]} Nc6 {[%emt 0:00:06]} 3. Bb5 {[%emt 0:00:05]} a6 {[%emt 0:00:06]} 4. Ba4 {[%emt 0:00:05]} Nf6 {[%emt 1:32:13]} 5. O-O {[%emt 0:00:07]} Nxe4 {[%emt 0:00:00]} 6. d4 {[%emt 0:00:39]} b5 {[%emt 0:00:00]} 7. Bb3 {[%emt 0:00:45]} d5 {[%emt 0:00:00]} 8. dxe5 {[%emt 0:00:59]} Be6 {[%emt 0:00:00]} 9. Qe2 {[%emt 0:00:17]} Be7 {[%emt 0:00:00]} 10. c3 {[%emt 0:00:41]} Nc5 {[%emt 0:00:00]} 11. Bc2 {[%emt 0:02:32]} d4 {[%emt 0:00:00]} 12. cxd4 {[%emt 0:03:46]} Nxd4 {[%emt 0:00:00]} 13. Nxd4 {[%emt 0:00:12]} Qxd4 {[%emt 0:00:00]} 14. Rd1 {[%emt 0:03:07]} Qc4 {[%emt 0:00:00]} 15. Nc3 {[%emt 0:05:38]} Qxe2 {[%emt 0:00:00]} 16. Nxe2 {[%emt 0:00:07]} O-O {[%emt 0:00:00]} 17. Be3 {[%emt 0:10:50]} Rfd8 {[%emt 0:00:00]} 18. Nd4 {[%emt 0:01:02]} Bd5 {[%emt 0:00:00]} 19. Nf5 {[%emt 0:19:53]} Bf8 {[%emt 0:00:00]} 20. f3 {[%emt 0:15:35]} Ne6 {[%emt 0:00:00]} 21. Kf2 {[%emt 0:01:14]} c5 {[%emt 0:00:00]} 22. Rd2 {[%emt 0:03:12]} g6 {[%emt 0:00:00]} 23. Nd6 {[%emt 0:03:01]} Bxd6 {[%emt 0:00:00]} 24. exd6 {[%emt 0:02:35]} Bc6 {[%emt 0:00:00]} 25. g4 {[%emt 0:00:42]} Kf8 {[%emt 0:00:00]} 26. f4 {[%emt 0:02:10]} Rac8 {[%emt 0:00:00]} 27. Re1 {[%emt 0:06:34]} Bb7 {[%emt 0:00:00]} 28. d7 {[%emt 0:05:35]} Ra8 {[%emt 0:00:00]} 29. Rd6 {[%emt 0:01:23]} Nd4 {[%emt 0:00:00]} 30. Bxd4 {[%emt 0:02:18]} cxd4 {[%emt 0:00:00]} 31. f5 {[%emt 0:02:54]} Ra7 {[%emt 0:00:04]} 32. f6 {[%emt 0:01:46]} a5 {[%emt 0:00:32]} 33. a4 {[%emt 0:02:19]} Ra6 {[%emt 0:06:14]} 34. Rxa6 {[%emt 0:00:15]} Bxa6 {[%emt 0:00:01]} 35. Re7 {[%emt 0:00:08]} b4 {[%emt 0:00:20]} 36. Bb3 {[%emt 0:00:34]} 1-0